Workbook

Sheet 雪花路机械
A1: 月份 | B1: 名称 | C1: 型号 | D1: 单价 | E1: 数量 | F1: 总价
A2: 202303 | B2: 汽车 | C2: 五菱 | D2: 880 | E2: 1 | F2: 880
A3: 202303 汇总 | F3: =SUBTOTAL(9,F2:F2) -> 880
A4: 202304 | B4: 汽车 | C4: 五菱 | D4: 2400 | E4: 1 | F4: 2400
A5: 202304 汇总 | F5: =SUBTOTAL(9,F4:F4) -> 2400
A6: 202305 | B6: 围挡 | D6: 13.95 | E6: 2000 | F6: =E6*D6 -> 27900
A7: 202305 | B7: 支架 | D7: 4.65 | E7: 1210 | F7: =E7*D7 -> 5626.5
A8: 202305 | B8: 挖掘机 | C8: 360 | D8: 38380 | E8: 1 | F8: =D8 -> 38380
A9: 202305 | B9: 挖掘机 | C9: 360 | D9: 38380 | E9: 1 | F9: 38380
A10: 202305 | B10: 挖掘机 | C10: 220 | D10: 25250 | E10: 1 | F10: 25250
A11: 202305 | B11: 挖掘机 | C11: 220 | D11: 25250 | E11: 1 | F11: 25250
A12: 202305 | B12: 挖掘机 | C12: 75 | D12: 19190 | E12: 1 | F12: 19190
A13: 202305 | B13: 铲车 | C13: 50 | D13: 14645 | E13: 1 | F13: 14645
A14: 202305 | B14: 汽车 | C14: 五菱 | D14: 2400 | E14: 1 | F14: 2400
A15: 202305 汇总 | F15: =SUBTOTAL(9,F6:F14) -> 197021.5
A16: 202306 | B16: 汽车 | C16: 五菱 | D16: 2400 | E16: 1 | F16: 2400
A17: 202306 | B17: 围挡 | D17: 13.5 | E17: 2866 | F17: =E17*D17 -> 38691
A18: 202306 | B18: 支架 | D18: 4.5 | E18: 1500 | F18: =E18*D18 -> 6750
A19: 202306 | B19: 护栏 | D19: 150 | E19: 50 | F19: =E19*D19 -> 7500
A20: 202306 | B20: 土方运输 | D20: 22 | E20: 16550 | F20: =E20*D20 -> 364100
A21: 202306 | B21: 挖掘机 | C21: 360 | D21: 1515 | E21: 24 | F21: =E21*D21 -> 36360
A22: 202306 | B22: 挖掘机 | C22: 360 | D22: 1515 | E22: 23 | F22: 34845
A23: 202306 | B23: 挖掘机 | C23: 360 | D23: 1515 | E23: 23 | F23: 34845
A24: 202306 | B24: 挖掘机 | C24: 360 | D24: 1515 | E24: 12 | F24: 18180
A25: 202306 | B25: 挖掘机 | C25: 360 | D25: 1515 | E25: 12 | F25: 18180
A26: 202306 | B26: 挖掘机 | C26: 220 | D26: 1010 | E26: 12 | F26: 12120
A27: 202306 | B27: 挖掘机 | C27: 220 | D27: 1010 | E27: 24 | F27: 24240
A28: 202306 | B28: 挖掘机 | C28: 75 | D28: 808 | E28: 12 | F28: 9696
A29: 202306 | B29: 铲车 | C29: 50 | D29: 707 | E29: 23 | F29: 16261
A30: 202306 | B30: 铲车 | C30: 30 | D30: 606 | E30: 23 | F30: 13938
A31: 202306 | B31: 铲车 | C31: zl-946g | D31: 808 | E31: 12 | F31: 9696
A32: 202306 | B32: 发电机 | C32: etc-50 | D32: 161.6 | E32: 23 | F32: 3716.8
A33: 202306 | B33: 钢板桩租赁 | C33: 9米 | D33: 120 | E33: 600 | F33: =E33*D33 -> 72000
A34: 202306 | B34: 工字钢租赁 | C34: 9米 | D34: 93 | E34: 1309 | F34: =E34*D34 -> 121737
A35: 202306 | B35: 钢板桩打拔 | C35: 9米 | D35: 100 | E35: 600 | F35: =E35*D35 -> 60000
A36: 202306 | B36: 工字钢打拔 | C36: 9米 | D36: 80 | E36: 2035 | F36: =E36*D36 -> 162800
A37: 202306 汇总 | F37: =SUBTOTAL(9,F16:F36) -> 1068055.8
A38: 202307 | B38: 汽车 | C38: 五菱 | D38: 2400 | E38: 1 | F38: 2400
A39: 202307 | B39: 围挡 | D39: 13.95 | E39: 1254 | F39: =E39*D39 -> 17493.3
A40: 202307 | B40: 支架 | D40: 4.65 | E40: 627 | F40: 2915.55
A41: 202307 | B41: 围挡 | C41: 4天 | D41: 1.8 | E41: 246 | F41: 442.8
A42: 202307 | B42: 支架 | C42: 4天 | D42: 0.6 | E42: 123 | F42: 73.8
A43: 202307 | B43: 土方运输 | D43: 22 | E43: 17300 | F43: 380600
A44: 202307 | B44: 钢板桩租赁 | C44: 9米 | D44: 124 | E44: 600 | F44: 74400
A45: 202307 | B45: 工字钢租赁 | C45: 9米 | D45: 96.1 | E45: 1300 | F45: 124930
A46: 202307 | B46: 钢板桩打拔 | C46: 9米 | D46: 600 | E46: 100 | F46: 60000
A47: 202307 | B47: 工字钢打拔 | C47: 9米 | D47: 80 | E47: 952 | F47: 76160
A48: 202307 | B48: 挖掘机 | C48: 360 | D48: 1515 | E48: 40 | F48: 60600
A49: 202307 | B49: 挖掘机 | C49: 360 | D49: 1515 | E49: 35 | F49: 53025
A50: 202307 | B50: 挖掘机 | C50: 360 | D50: 1515 | E50: 25 | F50: 37875
A51: 202307 | B51: 挖掘机 | C51: 360 | D51: 1515 | E51: 25 | F51: 37875
A52: 202307 | B52: 挖掘机 | C52: 360 | D52: 1515 | E52: 25 | F52: 37875
A53: 202307 | B53: 挖掘机 | C53: 220 | D53: 1010 | E53: 25 | F53: 25250
A54: 202307 | B54: 挖掘机 | C54: 220 | D54: 1010 | E54: 35 | F54: 35350
A55: 202307 | B55: 挖掘机 | C55: 75 | D55: 808 | E55: 30 | F55: =E55*D55 -> 24240
A56: 202307 | B56: 铲车 | C56: 50 | D56: 707 | E56: 35 | F56: =E56*D56 -> 24745
A57: 202307 | B57: 铲车 | C57: 30 | D57: 606 | E57: 37 | F57: =E57*D57 -> 22422
A58: 202307 | B58: 铲车 | C58: zl-946g | D58: 808 | E58: 34 | F58: =E58*D58 -> 27472
A59: 202307 | B59: 发电机 | C59: etc-50 | D59: 161.6 | E59: 37 | F59: =E59*D59 -> 5979.2
A60: 202307 汇总 | F60: =SUBTOTAL(9,F38:F59) -> 1132123.65
A61: 202308 | B61: 汽车 | C61: 五菱 | D61: 2400 | E61: 1 | F61: 2400
A62: 202308 | B62: 挖掘机 | C62: 360 | D62: 1515 | E62: 7 | F62: =E62*D62 -> 10605
A63: 202308 | B63: 围挡 | D63: 13.5 | E63: 1300 | F63: =E63*D63 -> 17550
A64: 202308 | B64: 支架 | D64: 4.5 | E64: 500 | F64: =E64*D64 -> 2250
A65: 202308 | B65: 钢板桩租赁 | C65: 9米 | D65: 124 | E65: 200 | F65: =E65*D65 -> 24800
A66: 202308 汇总 | F66: =SUBTOTAL(9,F61:F65) -> 57605
A67: 202309 | B67: 汽车 | C67: 五菱 | D67: 2400 | E67: 1 | F67: 2400
A68: 202309 | B68: 围挡 | D68: 13.5 | E68: 1300 | F68: =E68*D68 -> 17550
A69: 202309 | B69: 支架 | D69: 4.5 | E69: 500 | F69: =E69*D69 -> 2250
A70: 202309 | B70: 钢板桩租赁 | C70: 12米 | D70: 102 | E70: 320 | F70: =E70*D70 -> 32640
A71: 202309 | B71: 钢板桩租赁 | C71: 9米 | D71: 120 | E71: 200 | F71: =E71*D71 -> 24000
A72: 202309 | B72: 钢板桩打拔 | C72: 12米 | D72: 120 | E72: 420 | F72: =E72*D72 -> 50400
A73: 202309 | B73: 挖掘机 | C73: 360 | D73: 1515 | E73: 22 | F73: =E73*D73 -> 33330
A74: 202309 | B74: 挖掘机 | C74: 360 | D74: 1515 | E74: 22 | F74: 33330
A75: 202309 | B75: 挖掘机 | C75: 360 | D75: 1515 | E75: 11 | F75: 16665
A76: 202309 | B76: 挖掘机 | C76: 360 | D76: 1515 | E76: 11 | F76: 16665
A77: 202309 | B77: 挖掘机 | C77: 220 | D77: 1010 | E77: 21 | F77: 21210
A78: 202309 | B78: 挖掘机 | C78: 75 | D78: 808 | E78: 8 | F78: 6464
A79: 202309 | B79: 铲车 | C79: 50 | D79: 707 | E79: 21 | F79: 14847
A80: 202309 | B80: 铲车 | C80: 30 | D80: 606 | E80: 9 | F80: 5454
A81: 202309 | B81: 铲车 | C81: zl-946g | D81: 808 | E81: 11 | F81: 8888
A82: 202309 | B82: 发电机 | C82: etc-50 | D82: 161.6 | E82: 20 | F82: 3232
A83: 202309 汇总 | F83: =SUBTOTAL(9,F67:F82) -> 289325
A84: 总计 | F84: =SUBTOTAL(9,F2:F82) -> 2747410.95

Sheet 雪花路材料
A1: 月份 | B1: 材料名称 | C1: 型号 | D1: 数量 | E1: 单位 | F1: 单价 | G1: 金额
A2: 202306 | B2: 中砂 | D2: 8438 | E2: 立方米 | F2: 76.5 | G2: =F2*D2 -> 645507
A3: 202306 | B3: 承插口钢筋混凝土排水管 | C3: φ800*2000 | D3: 412 | E3: 米 | F3: 248 | G3: 102176
A4: 202306 | B4: 承插口钢筋混凝土排水管 | C4: φ1000*2000 | D4: 238 | E4: 米 | F4: 378 | G4: 89964
A5: 202306 | B5: 承插口钢筋混凝土排水管 | C5: φ1200*2000 | D5: 642 | E5: 米 | F5: 560 | G5: 359520
A6: 202306 | B6: 企口钢筋混凝土排水管 | C6: φ1400*2000 | D6: 272 | E6: 米 | F6: 680 | G6: 184960
A7: 202306 | B7: 企口钢筋混凝土排水管 | C7: φ1600*2500 | D7: 510 | E7: 米 | F7: 850 | G7: 433500
A8: 202306 | B8: 企口钢筋混凝土排水管 | C8: φ1800*2500 | D8: 175 | E8: 米 | F8: 1080 | G8: 189000
A9: 202306 | B9: 检查井盖 | C9: φ700重型 | D9: 49 | E9: 套 | F9: 1050 | G9: 51450
A10: 202306 | B10: 混凝土 | C10: C30P6 | D10: 225.5 | E10: 立方米 | F10: 360 | G10: 81180
A11: 202306 | B11: 混凝土 | C11: C30P8 | D11: 20 | E11: 立方米 | F11: 370 | G11: 7400
A12: 202306 | B12: 杂品费 | G12: 30703.8
A13: 202306 汇总 | G13: =SUBTOTAL(9,G2:G12) -> 2175360.8
A14: 202307 | B14: 中砂 | D14: 7444 | E14: 立方米 | F14: 76.5 | G14: =F14*D14 -> 569466
A15: 202307 | B15: 承插口钢筋混凝土排水管 | C15: φ800*2000 | D15: 64 | E15: 米 | F15: 248 | G15: 15872
A16: 202307 | B16: 承插口钢筋混凝土排水管 | C16: φ1200*2000 | D16: 90 | E16: 米 | F16: 560 | G16: 50400
A17: 202307 | B17: 企口钢筋混凝土排水管 | C17: φ1400*2000 | D17: 330 | E17: 米 | F17: 680 | G17: 224400
A18: 202307 | B18: 混凝土 | C18: C30P6 | D18: 215.6 | E18: 立方米 | F18: 360 | G18: 77616
A19: 202307 | B19: 检查井盖 | C19: φ700重型 | D19: 51 | E19: 套 | F19: 1050 | G19: 53550
A20: 202307 | B20: 企口钢筋混凝土排水管 | C20: φ1600*2500 | D20: 75 | E20: 米 | F20: 850 | G20: 63750
A21: 202307 | B21: 企口钢筋混凝土排水管 | C21: φ1800*2500 | D21: 25 | E21: 米 | F21: 1080 | G21: 27000
A22: 202307 | B22: 3PE钢管 | C22: φ400*8 | D22: 12 | E22: 米 | F22: 580 | G22: 6960
A23: 202307 | B23: 3PE钢管 | C23: φ200*8 | D23: 84 | E23: 米 | F23: 263 | G23: 22092
A24: 202307 | B24: 3PE钢管 | C24: φ300*7 | D24: 24 | E24: 米 | F24: 390 | G24: 9360
A25: 202307 | B25: 钢套管 | C25: φ600*8 | D25: 11 | E25: 米 | F25: 570 | G25: 6270
A26: 202307 | B26: 钢套管 | C26: φ500*8 | D26: 12 | E26: 米 | F26: 625 | G26: 7500
A27: 202307 | B27: 钢套管 | C27: φ400*8 | D27: 36 | E27: 米 | F27: 450 | G27: 16200
A28: 202307 | B28: 弯头（铁） | C28: DN300*22.5° | D28: 4 | E28: 个 | F28: 220 | G28: 880
A29: 202307 | B29: 弯头（铁） | C29: DN300*22.5° | D29: 8 | E29: 个 | F29: 206 | G29: 1648
A30: 202307 | B30: 压兰甲 | C30: DN300*22.5° | D30: 6 | E30: 个 | F30: 850 | G30: 5100
A31: 202307 | B31: 焊接法兰 | C31: DN200 | D31: 11 | E31: 片 | F31: 90 | G31: 990
A32: 202307 汇总 | G32: =SUBTOTAL(9,G14:G31) -> 1159054
A33: 202308 | B33: 中砂 | D33: 1168 | E33: 立方米 | F33: 76.5 | G33: =F33*D33 -> 89352
A34: 202308 | B34: 大圈-调节块 | C34: φ700*100*360 | D34: 33 | E34: 个 | F34: 195 | G34: 6435
A35: 202308 | B35: 大圈-调节块 | C35: φ700*100*240 | D35: 27 | E35: 个 | F35: 175 | G35: 4725
A36: 202308 | B36: 大圈-调节块 | C36: φ700*100*180 | D36: 20 | E36: 个 | F36: 155 | G36: 3100
A37: 202308 | B37: 钢筋 | C37: 西钢三级φ12 | D37: 42 | E37: 个 | F37: 3870 | G37: 162540
A38: 202308 | B38: 钢筋 | C38: 西钢三级φ14 | D38: 25 | E38: 吨 | F38: 3800 | G38: 95000
A39: 202308 | B39: 钢筋 | C39: 西钢三级φ16 | D39: 7 | E39: 吨 | F39: 3800 | G39: 26600
A40: 202308 | B40: 钢筋 | C40: 西钢三级φ18 | D40: 4 | E40: 吨 | F40: 3750 | G40: 15000
A41: 202308 | B41: 钢筋盘圆 | C41: 8 300 | D41: 3 | E41: 吨 | F41: 3960 | G41: 11880
A42: 202308 | B42: 杂品费 | G42: 9728.8
A43: 202308 汇总 | G43: =SUBTOTAL(9,G33:G42) -> 424360.8
A44: 202309 | B44: 重型盖板 | C44: 1500*1500 | D44: 25 | E44: 块 | F44: 450 | G44: =F44*D44 -> 11250
A45: 202309 | B45: 承插口钢筋混凝土排水管 | C45: φ300*2000 | D45: 544 | E45: 米 | F45: 65 | G45: =F45*D45 -> 35360
A46: 202309 | B46: 承插口钢筋混凝土排水管 | C46: φ1200*2000 | D46: 16 | E46: 米 | F46: 560 | G46: =F46*D46 -> 8960
A47: 202309 | B47: 企口钢筋混凝土排水管 | C47: φ1400*2000 | D47: 2 | E47: 米 | F47: 680 | G47: =F47*D47 -> 1360
A48: 202309 | B48: 86式雨水井 | D48: 76 | E48: 套 | F48: 450 | G48: =F48*D48 -> 34200
A49: 202309 | B49: 杂品费 | G49: 8413
A50: 202309 | B50: 中砂 | D50: 658 | E50: 立方米 | F50: 76.5 | G50: =F50*D50 -> 50337
A51: 202309 | B51: 级配碎石 | D51: 959 | E51: 立方米 | F51: 139 | G51: 133301
A52: 202309 | B52: 二灰碎石 | D52: 167 | E52: 立方米 | F52: 1457 | G52: 243319
A53: 202309 | B53: 三灰碎石 | D53: 177 | E53: 立方米 | F53: 1457 | G53: 257889
A54: 202309 | B54: 混凝土 | C54: C30P6 | D54: 22 | E54: 立方米 | F54: 360 | G54: 7920
A55: 202309 | B55: 混凝土 | C55: C20 | D55: 120 | E55: 立方米 | F55: 320 | G55: 38400
A56: 202309 汇总 | G56: =SUBTOTAL(9,G44:G55) -> 830709
A57: 总计 | G57: =SUBTOTAL(9,G2:G55) -> 4589484.6

Sheet 雪花路人工
A1: 月份 | B1: 工种 | C1: 工数 | D1: 单价 | E1: 总价
A2: 202305 | B2: 水暖工 | C2: 120 | D2: 400 | E2: =D2*C2 -> 48000
A3: 202305 | B3: 木工 | C3: 360 | D3: 400 | E3: =D3*C3 -> 144000
A4: 202305 | B4: 钢筋工 | C4: 240 | D4: 300 | E4: =D4*C4 -> 72000
A5: 202305 | B5: 电工 | C5: 48 | D5: 300 | E5: =D5*C5 -> 14400
A6: 202305 | B6: 力工 | C6: 1008 | D6: 180 | E6: =D6*C6 -> 181440
A7: 202305 汇总 | E7: =SUBTOTAL(9,E2:E6) -> 459840
A8: 202306 | B8: 管道工 | C8: 143 | D8: 400 | E8: =C8*D8 -> 57200
A9: 202306 | B9: 木工 | C9: 220 | D9: 400 | E9: 88000
A10: 202306 | B10: 钢筋工 | C10: 187 | D10: 300 | E10: 56100
A11: 202306 | B11: 电工 | C11: 66 | D11: 300 | E11: 19800
A12: 202306 | B12: 振捣工 | C12: 33 | D12: 320 | E12: 10560
A13: 202306 | B13: 力工 | C13: 616 | D13: 180 | E13: 110880
A14: 202306 汇总 | E14: =SUBTOTAL(9,E8:E13) -> 342540
A15: 202307 | B15: 管道工 | C15: 156 | D15: 400 | E15: =D15*C15 -> 62400
A16: 202307 | B16: 木工 | C16: 240 | D16: 400 | E16: 96000
A17: 202307 | B17: 钢筋工 | C17: 272 | D17: 300 | E17: 81600
A18: 202307 | B18: 电工 | C18: 16 | D18: 300 | E18: 4800
A19: 202307 | B19: 力工 | C19: 999 | D19: 180 | E19: 179820
A20: 202307 | B20: 振捣工 | C20: 45 | D20: 320 | E20: 14400
A21: 202307 汇总 | E21: =SUBTOTAL(9,E15:E20) -> 439020
A22: 202308 | B22: 力工 | C22: 162 | D22: 180 | E22: =C22*D22 -> 29160
A23: 202308 汇总 | E23: =SUBTOTAL(9,E22:E22) -> 29160
A24: 202309 | B24: 管道工 | C24: 72 | D24: 400 | E24: =D24*C24 -> 28800
A25: 202309 | B25: 木工 | C25: 60 | D25: 400 | E25: 24000
A26: 202309 | B26: 钢筋工 | C26: 96 | D26: 300 | E26: 28800
A27: 202309 | B27: 电工 | C27: 16 | D27: 300 | E27: 4800
A28: 202309 | B28: 力工 | C28: 272 | D28: 180 | E28: 48960
A29: 202309 | B29: 振捣工 | C29: 42 | D29: 320 | E29: 13440
A30: 202309 汇总 | E30: =SUBTOTAL(9,E24:E29) -> 148800
A31: 总计 | E31: =SUBTOTAL(9,E2:E29) -> 1419360

Sheet 报表
A1: 财务 | P1: 现场
A2: 序号 | B2: 部门 | C2: 营业收入 | D2: 营业成本 | E2: 税金及附加 | F2: 研发费用 | G2: 安全生产费 | H2: 管理费用 | I2: 财务费用 | J2: 营业外收入 | K2: 营业外支出 | L2: 利润总额 | M2: 所得税 | N2: 净利润 | O2: 利润率
A3: 1 | B3: 公司 | C3: 2656.21 | D3: 2278.32 | E3: 21.21 | F3: 190.75 | G3: 2.16 | H3: 905.83 | I3: -57.94 | J3: 1.45 | K3: 109.25 | L3: =C3-D3-E3-F3-G3-H3-I3+J3-K3 -> -791.92 | M3: 227.62 | N3: =L3-M3 -> -1019.54 | O3: =N3/C3 -> -0.3838326036
A4: 2 | B4: 一分公司 | C4: 5109.586385 | D4: 4613.020202 | E4: 23.247073 | F4: 132.121335 | G4: 1.022758 | J4: 1 | L4: =C4-D4-E4-F4-G4-H4-I4+J4-K4 -> 341.175017 | N4: =L4-M4 -> 341.175017 | O4: =N4/C4 -> 0.06677155278
A5: 3 | B5: 二分公司 | C5: 1613.1 | D5: 1538.62 | E5: 6.77 | F5: 7.1 | G5: 0.49 | L5: =C5-D5-E5-F5-G5-H5-I5+J5-K5 -> 60.12 | N5: 60.12 | O5: 0.03726985308
A6: 4 | B6: 三分公司 | C6: 1227.705524 | D6: 834.4304 | E6: 6.844971 | F6: 222.4819 | L6: 163.948253 | N6: 163.948253 | O6: 0.1335403725
A7: 4.1 | B7: 哈尔滨新区利民片区排水设施和管网改造项目雪花路排水改造施工 | C7: 992.818732 | D7: 834.4304 | L7: =C7-D7-E24-F7 -> 151.543361 | O7: =L7/C7 -> 0.1526395062 | P7: 哈尔滨新区利民片区排水设施和管网改造项目雪花路排水改造施工
A8: 4.1.1 | B8: 人工 | C8: 137.801943 | P8: 人工 | Q8: =雪花路人工!E31/10000 -> 141.936
A9: 4.1.2 | B9: 机械 | C9: 218.627522 | P9: 机械 | Q9: =雪花路机械!F84/10000 -> 274.741095
A10: 4.1.3 | B10: 材料 | C10: 438.656041 | P10: 材料 | Q10: =雪花路材料!G57/10000 -> 458.94846
A11: 4.1.4 | B11: 其他直接费 | C11: 38.375931 | P11: 其他直接费
A12: 4.1.5 | B12: 间接费 | C12: 0.968981 | P12: 间接费
A13: 4.1.6 | B13: 研发费用 | C13: 222.481945 | P13: 合计 | Q13: =SUM(Q8:Q12) -> 875.625555
A14: 4.1.7 | B14: 安全生产费
A15: 4.1.8 | B15: 合计 | C15: =SUM(C8:O14) -> 1056.912363
A16: 4.1.9 | B16: 暂估余额 | C16: 103.78
A17: 4.2 | B17: 哈建设发展集团有限责任公司协同办公系统采购项目 | C17: 61.132075 | L17: =C17-D17-E17-F17 -> 61.132075 | O17: =L17/C17 -> 1
A18: 4.3 | B18: 哈建设发展集团有限责任公司智慧工地管理系统采购项目 | C18: 32.877358 | L18: =C18-D18-E18-F18 -> 32.877358 | O18: 1
A19: 4.4 | B19: 哈建设发展集团有限责任公司资产经营管理系统采购项目 | C19: 28.09434 | L19: 28.09434 | O19: 1
A20: 4.5 | B20: 哈建设发展集团有限责任公司AI智能监控平台采购项目 | C20: 18.679245 | L20: 18.679245 | O20: 1
A21: 4.6 | B21: 哈建设发展集团有限责任公司市政项目管理系统采购项目 | C21: 47.028302 | L21: 47.028302 | O21: 1
A22: 4.7 | B22: 哈尔滨建设发展集团数字化转型支持类软件服务采购项目 | C22: 47.075472 | L22: 47.075472 | O22: 1
A23: 4.8 | B23: 研发费用 | F23: 222.4819 | L23: -222.4819
B24: 合计 | C24: =SUM(C17:C23)+C7 -> 1227.705524 | D24: =SUM(D7:D23) -> 834.4304 | E24: 6.844971 | F24: =SUM(F7:F23) -> 222.4819 | L24: =SUM(L7:L23) -> 163.948253 | M24: =SUM(M7:M23) -> 0 | N24: =SUM(N7:N23) -> 0 | O24: =L24/C24 -> 0.1335403725
A25: 5 | B25: 直属分公司 | C25: 14648.38 | D25: 13759.72 | E25: 34.62 | F25: 78.78 | G25: 0.94 | L25: 774.32 | N25: 774.32 | O25: 0.05286045283
A26: 6 | B26: 环保新能源分公司 | C26: 109.245615 | D26: 108.982242 | E26: 1.07403 | F26: 0 | L26: -0.810657 | N26: -0.810657 | O26: -0.007420499212
A27: 7 | B27: 宾县分公司 | C27: 5928.827442 | D27: 5521.003905 | E27: 32.670864 | F27: 33.289964 | G27: 3.3767 | I27: -6.25 | K27: 0.35 | L27: 344.386009 | N27: 344.386009 | O27: 0.05808669798
A28: 8 | B28: 松北分公司 | C28: 49.584713 | D28: 49.198606 | E28: 0.346052 | F28: 0 | I28: -19.32 | K28: 0.04 | L28: 19.320055 | N28: 19.320055 | O28: 0.3896373263
A29: 9 | B29: 新区子公司 | C29: 1437.489385 | D29: 1367.345599 | E29: 3.43 | F29: 0 | G29: 2.10055 | H29: 40.37 | I29: -3.19 | L29: 27.433236 | M29: 1.6 | N29: 25.833236 | O29: 0.01797107949
A30: 10 | B30: 华光 | I30: 0.04 | L30: =C30-D30-E30-F30-G30-H30-I30+J30-K30 -> -0.04 | N30: -0.04
B31: 合并抵销差额 | C31: 318.01 | D31: 318.01 | L31: 0 | N31: 0
B32: 合 计 | C32: =C3+C4+C5+C6+C25+C26+C27+C28+C29-C31 -> 32462.11906 | D32: =D3+D4+D5+D6+D25+D26+D27+D28+D29-D31 -> 29752.63095 | E32: =SUM(E25:E31)+SUM(E3:E6) -> 130.21299 | F32: =SUM(F25:F31)+SUM(F3:F6) -> 664.523199 | G32: 10.090008 | H32: 946.2 | I32: -86.66 | J32: 2.45 | K32: 109.64 | L32: 937.931913 | M32: 229.22 | N32: =L32-M32 -> 708.711913 | O32: =N32/C32 -> 0.02183196703
